{"text_format":"3","workbook":"xlsx","n_sheets":2,"sheets":["Lista nastavnika"," Lista podataka"],"not_rendered":{"defined_names":6},"read":"whole","date_system":"1900"}

{"sheet":"Lista nastavnika","index":0,"n_rows":10,"n_cols":10,"rows_kept":10,"merged":[[0,1,0,2],[0,4,0,8],[2,9,6,9]]}
[null,"Lista nastavnika",null,"Lista podataka","Legenda boja za „Status“ je u ovoj ćeliji: Nije pokrenuto u normalnom stilu, U toku je R = 91 G = 133 B = 49, Danas je krajnji rok  je R = 118 G = 88 B = 0, Na čekanju je R = 109 G = 66 B = 111, Dovršeno je precrtani tekst, Otkazano je R = 191 G = 191 B = 191 i Istekao rok je R = 191 G = 33 B = 28."]
[null,"STAVKA","KATEGORIJA","DATUM POČETKA","KRAJNJI ROK","PREOSTALO DANA","STATUS","BELEŠKE"]
[null,"Očisti fioke","Kancelarija",{"$f":"DATE(YEAR(TODAY()),MONTH(TODAY())-1,6)","v":"2018-04-06"},{"$f":"DATE(YEAR(TODAY()),MONTH(TODAY())-1,16)","v":"2018-04-16"},{"$f":"IFERROR(IF(COUNT(Lista[[#This Row],[DATUM POČETKA]]:Lista[[#This Row],[KRAJNJI ROK]])<>2,\"\",IF(OR(Lista[[#This Row],[STATUS]]=\"Dovršeno\",Lista[[#This Row],[STATUS]]=\"Otkazano\",Lista[[#This Row],[STATUS]]=\"Na čekanju\"),\"\",Lista[[#This Row],[KRAJNJI ROK]]-TODAY())),\"\")","v":""},"Dovršeno",null,null,"Modul za sečenje statusa je u ovoj ćeliji. Da biste filtrirali listu po statusu, izaberite status iz modula za sečenje. Pritisnite i držite taster CTRL da biste izabrali više opcija."]
[null,"Poruči nalepnice","Pribor",{"$f":"DATE(YEAR(TODAY()),MONTH(TODAY())-1,11)","v":"2018-04-11"},{"$f":"DATE(YEAR(TODAY()),MONTH(TODAY())-1,21)","v":"2018-04-21"},{"$f":"IFERROR(IF(COUNT(Lista[[#This Row],[DATUM POČETKA]]:Lista[[#This Row],[KRAJNJI ROK]])<>2,\"\",IF(OR(Lista[[#This Row],[STATUS]]=\"Dovršeno\",Lista[[#This Row],[STATUS]]=\"Otkazano\",Lista[[#This Row],[STATUS]]=\"Na čekanju\"),\"\",Lista[[#This Row],[KRAJNJI ROK]]-TODAY())),\"\")","v":""},"Dovršeno"]
[null,"Podovi oprani i ispolirani","Drugo",{"$f":"DATE(YEAR(TODAY()),MONTH(TODAY()-1),DAY(TODAY())-25)","v":"2018-04-15"},{"$f":"DATE(YEAR(TODAY()),MONTH(TODAY())-1,26)","v":"2018-04-26"},{"$f":"IFERROR(IF(COUNT(Lista[[#This Row],[DATUM POČETKA]]:Lista[[#This Row],[KRAJNJI ROK]])<>2,\"\",IF(OR(Lista[[#This Row],[STATUS]]=\"Dovršeno\",Lista[[#This Row],[STATUS]]=\"Otkazano\",Lista[[#This Row],[STATUS]]=\"Na čekanju\"),\"\",Lista[[#This Row],[KRAJNJI ROK]]-TODAY())),\"\")","v":""},"Dovršeno"]
[null,"Napravljene pločice sa imenom","Pribor",{"$f":"DATE(YEAR(TODAY()),MONTH(TODAY())-1,21)","v":"2018-04-21"},{"$f":"DATE(YEAR(TODAY()),MONTH(TODAY())-1,1)","v":"2018-04-01"},{"$f":"IFERROR(IF(COUNT(Lista[[#This Row],[DATUM POČETKA]]:Lista[[#This Row],[KRAJNJI ROK]])<>2,\"\",IF(OR(Lista[[#This Row],[STATUS]]=\"Dovršeno\",Lista[[#This Row],[STATUS]]=\"Otkazano\",Lista[[#This Row],[STATUS]]=\"Na čekanju\"),\"\",Lista[[#This Row],[KRAJNJI ROK]]-TODAY())),\"\")","v":""},"Na čekanju"]
[null,"Napisani izveštaji za kraj kvartala","Procene",{"$f":"DATE(YEAR(TODAY()),MONTH(TODAY())-1,26)","v":"2018-04-26"},{"$f":"TODAY()-5","v":"2018-05-05"},{"$f":"IFERROR(IF(COUNT(Lista[[#This Row],[DATUM POČETKA]]:Lista[[#This Row],[KRAJNJI ROK]])<>2,\"\",IF(OR(Lista[[#This Row],[STATUS]]=\"Dovršeno\",Lista[[#This Row],[STATUS]]=\"Otkazano\",Lista[[#This Row],[STATUS]]=\"Na čekanju\"),\"\",Lista[[#This Row],[KRAJNJI ROK]]-TODAY())),\"\")","v":-5},"Istekao rok"]
[null,"Podsetnik e-poštom za propusnice","Telefonski pozivi",{"$f":"DATE(YEAR(TODAY()),MONTH(TODAY()),1)","v":"2018-05-01"},{"$f":"TODAY()","v":"2018-05-10"},{"$f":"IFERROR(IF(COUNT(Lista[[#This Row],[DATUM POČETKA]]:Lista[[#This Row],[KRAJNJI ROK]])<>2,\"\",IF(OR(Lista[[#This Row],[STATUS]]=\"Dovršeno\",Lista[[#This Row],[STATUS]]=\"Otkazano\",Lista[[#This Row],[STATUS]]=\"Na čekanju\"),\"\",Lista[[#This Row],[KRAJNJI ROK]]-TODAY())),\"\")","v":""},"Otkazano"]
[null,"Usmeni izveštaji","Kancelarija",{"$f":"DATE(YEAR(TODAY()),MONTH(TODAY()),7)","v":"2018-05-07"},{"$f":"DATE(YEAR(TODAY()),MONTH(TODAY()),17)","v":"2018-05-17"},{"$f":"IFERROR(IF(COUNT(Lista[[#This Row],[DATUM POČETKA]]:Lista[[#This Row],[KRAJNJI ROK]])<>2,\"\",IF(OR(Lista[[#This Row],[STATUS]]=\"Dovršeno\",Lista[[#This Row],[STATUS]]=\"Otkazano\",Lista[[#This Row],[STATUS]]=\"Na čekanju\"),\"\",Lista[[#This Row],[KRAJNJI ROK]]-TODAY())),\"\")","v":7},"U toku"]
[null,"Rezanje olovaka","Pribor",{"$f":"DATE(YEAR(TODAY()),MONTH(TODAY()),11)","v":"2018-05-11"},{"$f":"DATE(YEAR(TODAY()),MONTH(TODAY()),10)","v":"2018-05-10"},{"$f":"IFERROR(IF(COUNT(Lista[[#This Row],[DATUM POČETKA]]:Lista[[#This Row],[KRAJNJI ROK]])<>2,\"\",IF(OR(Lista[[#This Row],[STATUS]]=\"Dovršeno\",Lista[[#This Row],[STATUS]]=\"Otkazano\",Lista[[#This Row],[STATUS]]=\"Na čekanju\"),\"\",Lista[[#This Row],[KRAJNJI ROK]]-TODAY())),\"\")","v":0},"U toku"]

{"sheet":" Lista podataka","index":1,"n_rows":13,"n_cols":3,"rows_kept":13}
[null,"Lista podataka","Lista nastavnika"]
[null,"Kategorija"]
[null,"Kancelarija"]
[null,"Pribor"]
[null,"Spisak za kupovinu"]
[null,"Telefonski pozivi"]
[null,"Nove ideje"]
[null,"Procene"]
[null,"Tim"]
[null,"Intervencije"]
[null,"Računar"]
[null,"Lično"]
[null,"Drugo"]